[Event "Late-Titled-Tuesday-Blitz-January-16-2024"]
[Site "Chess.com"]
[Date "2024.01.16"]
[Round "2"]
[White "Mariia89"]
[Black "MidnightFox"]
[Result "1-0"]
[WhiteElo "2208"]
[BlackElo "2483"]
[TimeControl "180+1"]
[EndTime "14:12:44 PST"]
[Termination "Mariia89 won by resignation"]

1. d4 {[%clk 0:02:59.3]} 1... Nf6 {[%clk 0:02:58.6]} 2. Nf3 {[%clk 0:02:59.4]}
2... g6 {[%clk 0:02:58.6]} 3. c4 {[%clk 0:02:58.9]} 3... Bg7 {[%clk 0:02:58.9]}
4. Nc3 {[%clk 0:02:59.7]} 4... d5 {[%clk 0:02:59]} 5. Bg5 {[%clk 0:02:59.4]}
5... dxc4 {[%clk 0:02:47.6]} 6. e3 {[%clk 0:02:57.7]} 6... O-O {[%clk
0:02:46.7]} 7. Bxc4 {[%clk 0:02:57.4]} 7... a6 {[%clk 0:02:45.1]} 8. a4 {[%clk
0:02:53.2]} 8... Nc6 {[%clk 0:02:42.5]} 9. O-O {[%clk 0:02:50.9]} 9... Bg4
{[%clk 0:02:42]} 10. h3 {[%clk 0:02:48]} 10... Bxf3 {[%clk 0:02:41.3]} 11. Qxf3
{[%clk 0:02:48.9]} 11... Rb8 {[%clk 0:02:37.5]} 12. Rac1 {[%clk 0:02:36.6]}
12... Nb4 {[%clk 0:02:38.4]} 13. Rfd1 {[%clk 0:02:29]} 13... Qd6 {[%clk
0:02:39.3]} 14. Bf4 {[%clk 0:02:23.9]} 14... c6 {[%clk 0:02:40.2]} 15. Bxd6
{[%clk 0:02:23.1]} 15... exd6 {[%clk 0:02:25.4]} 1-0

[Event "Late-Titled-Tuesday-Blitz-January-16-2024"]
[Site "Chess.com"]
[Date "2024.01.16"]
[Round "2"]
[White "chessisveryfun1264"]
[Black "Sebastian"]
[Result "0-1"]
[WhiteElo "2581"]
[BlackElo "2962"]
[TimeControl "180+1"]
[EndTime "14:13:35 PST"]
[Termination "Sebastian won by resignation"]

1. Nf3 {[%clk 0:03:00.9]} 1... Nf6 {[%clk 0:02:59.7]} 2. g3 {[%clk 0:02:58.9]}
2... c5 {[%clk 0:02:59.9]} 3. Bg2 {[%clk 0:02:45.3]} 3... Nc6 {[%clk 0:03:00.4]}
4. O-O {[%clk 0:02:45.7]} 4... e5 {[%clk 0:03:00.6]} 5. c4 {[%clk 0:02:42.1]}
5... d5 {[%clk 0:02:58.4]} 6. cxd5 {[%clk 0:02:40.7]} 6... Nxd5 {[%clk
0:02:59.3]} 7. Nc3 {[%clk 0:02:38.3]} 7... Be6 {[%clk 0:02:59]} 8. a3 {[%clk
0:02:37.3]} 8... Be7 {[%clk 0:02:58.7]} 9. e3 {[%clk 0:02:36.9]} 9... O-O {[%clk
0:02:37.3]} 10. d3 {[%clk 0:02:32.7]} 10... Qd7 {[%clk 0:02:34.3]} 11. Qe2
{[%clk 0:02:31.7]} 11... Rfd8 {[%clk 0:02:31.7]} 12. Rd1 {[%clk 0:02:31.7]}
12... Rac8 {[%clk 0:02:17.1]} 13. Bd2 {[%clk 0:02:31.6]} 13... f6 {[%clk
0:02:12.1]} 14. Rac1 {[%clk 0:02:31.6]} 14... b6 {[%clk 0:01:59.9]} 15. Be1
{[%clk 0:02:31.4]} 15... Nxc3 {[%clk 0:01:53]} 16. Bxc3 {[%clk 0:02:31.2]} 16...
Bb3 {[%clk 0:01:52.8]} 17. Rd2 {[%clk 0:02:29.9]} 17... Nd4 {[%clk 0:01:41.8]}
18. exd4 {[%clk 0:02:23.7]} 18... cxd4 {[%clk 0:01:41.6]} 19. Bxd4 {[%clk
0:02:08.3]} 19... Rxc1+ {[%clk 0:01:40.4]} 0-1

[Event "Late-Titled-Tuesday-Blitz-January-16-2024"]
[Site "Chess.com"]
[Date "2024.01.16"]
[Round "2"]
[White "m_ezat"]
[Black "gxbg2000"]
[Result "1-0"]
[WhiteElo "2454"]
[BlackElo "2081"]
[TimeControl "180+1"]
[EndTime "14:14:10 PST"]
[Termination "m_ezat won by resignation"]

1. d4 {[%clk 0:03:00.9]} 1... d5 {[%clk 0:02:59.3]} 2. c4 {[%clk 0:02:59.9]}
2... c6 {[%clk 0:02:59]} 3. Nc3 {[%clk 0:02:59.8]} 3... Nf6 {[%clk 0:02:59.6]}
4. cxd5 {[%clk 0:02:58.9]} 4... cxd5 {[%clk 0:02:59.2]} 5. Bf4 {[%clk
0:02:59.4]} 5... a6 {[%clk 0:02:57.8]} 6. e3 {[%clk 0:02:59.8]} 6... g6 {[%clk
0:02:58.3]} 7. h3 {[%clk 0:02:58.3]} 7... Bg7 {[%clk 0:02:58.3]} 8. Nf3 {[%clk
0:02:58.9]} 8... O-O {[%clk 0:02:58.3]} 9. Bd3 {[%clk 0:02:59.4]} 9... Nc6
{[%clk 0:02:58.6]} 10. Rc1 {[%clk 0:02:57.4]} 10... Bd7 {[%clk 0:02:56.2]} 11.
O-O {[%clk 0:02:56]} 11... Rc8 {[%clk 0:02:55.8]} 12. Qe2 {[%clk 0:02:54.6]}
12... b5 {[%clk 0:02:55.4]} 13. a4 {[%clk 0:02:52.6]} 13... b4 {[%clk
0:02:54.6]} 14. Nb1 {[%clk 0:02:51.1]} 14... a5 {[%clk 0:02:54.9]} 15. Nbd2
{[%clk 0:02:46]} 15... Qb6 {[%clk 0:02:54]} 16. Nb3 {[%clk 0:02:45.1]} 16... Ne4
{[%clk 0:02:25.5]} 17. Nc5 {[%clk 0:02:39.7]} 17... Nxc5 {[%clk 0:02:24.8]} 18.
Rxc5 {[%clk 0:02:38.6]} 18... e6 {[%clk 0:02:16.1]} 19. Rfc1 {[%clk 0:02:36.1]}
19... Ne7 {[%clk 0:02:15]} 20. Bc7 {[%clk 0:02:31.4]} 20... Qb7 {[%clk
0:01:59.7]} 21. Ba6 {[%clk 0:02:28.9]} 21... Qa7 {[%clk 0:01:56.2]} 22. Bxc8
{[%clk 0:02:26.3]} 22... Nxc8 {[%clk 0:01:50.6]} 23. Rxa5 {[%clk 0:02:24.9]}
23... Qb7 {[%clk 0:01:50.1]} 24. Qa6 {[%clk 0:02:23.6]} 24... Qxa6 {[%clk
0:01:43.7]} 25. Rxa6 {[%clk 0:02:22.9]} 25... Ne7 {[%clk 0:01:36.1]} 26. Bd6
{[%clk 0:02:18.4]} 26... Re8 {[%clk 0:01:33.8]} 27. Ra7 {[%clk 0:02:13.9]} 1-0

[Event "Late-Titled-Tuesday-Blitz-January-16-2024"]
[Site "Chess.com"]
[Date "2024.01.16"]
[Round "2"]
[White "Bauman_Guy"]
[Black "chesspreceptor"]
[Result "1-0"]
[WhiteElo "2907"]
[BlackElo "2567"]
[TimeControl "180+1"]
[EndTime "14:14:20 PST"]
[Termination "Bauman_Guy won by resignation"]

1. e4 {[%clk 0:03:00.9]} 1... c6 {[%clk 0:02:58.1]} 2. d4 {[%clk 0:03:00.8]}
2... d5 {[%clk 0:02:57.8]} 3. e5 {[%clk 0:03:01.4]} 3... Bf5 {[%clk 0:02:56.8]}
4. h4 {[%clk 0:03:01.6]} 4... h5 {[%clk 0:02:56.1]} 5. Bd3 {[%clk 0:03:02]} 5...
Bxd3 {[%clk 0:02:53.8]} 6. Qxd3 {[%clk 0:03:02.9]} 6... e6 {[%clk 0:02:52.6]} 7.
Nf3 {[%clk 0:03:02.9]} 7... Qa5+ {[%clk 0:02:49.9]} 8. Nbd2 {[%clk 0:03:02.8]}
8... Qa6 {[%clk 0:02:50.1]} 9. c4 {[%clk 0:03:02.9]} 9... Nd7 {[%clk 0:02:44.8]}
10. b3 {[%clk 0:03:03]} 10... Ne7 {[%clk 0:02:42.9]} 11. O-O {[%clk 0:03:02.8]}
11... Nf5 {[%clk 0:02:41.9]} 12. Rd1 {[%clk 0:03:00.3]} 12... Be7 {[%clk
0:02:41.1]} 13. g3 {[%clk 0:03:00.1]} 13... Rd8 {[%clk 0:02:26]} 14. Nf1 {[%clk
0:02:54.5]} 14... O-O {[%clk 0:02:23.6]} 15. Ne3 {[%clk 0:02:52.1]} 15... dxc4
{[%clk 0:02:20.6]} 16. bxc4 {[%clk 0:02:48.3]} 16... Nc5 {[%clk 0:02:13.7]} 17.
Qc2 {[%clk 0:02:39.5]} 17... Nxe3 {[%clk 0:02:13.6]} 18. Bxe3 {[%clk 0:02:38.9]}
18... Qa4 {[%clk 0:02:13.6]} 19. Qe2 {[%clk 0:02:37.3]} 19... Ne4 {[%clk
0:02:10.8]} 20. Rac1 {[%clk 0:02:33.6]} 20... Ba3 {[%clk 0:02:04]} 21. Rc2
{[%clk 0:02:33.3]} 21... Bb4 {[%clk 0:01:51.4]} 22. Rd3 {[%clk 0:02:30.5]} 22...
Qa5 {[%clk 0:01:41.4]} 23. a3 {[%clk 0:02:22.8]} 23... Be7 {[%clk 0:01:33.1]}
24. Bf4 {[%clk 0:02:15.7]} 24... Qa4 {[%clk 0:01:33]} 25. Rc1 {[%clk 0:02:06.9]}
25... f5 {[%clk 0:01:24.6]} 26. exf6 {[%clk 0:02:06]} 26... Nxf6 {[%clk
0:01:24.8]} 27. Qxe6+ {[%clk 0:02:06]} 27... Rf7 {[%clk 0:01:25.5]} 1-0

[Event "Late-Titled-Tuesday-Blitz-January-16-2024"]
[Site "Chess.com"]
[Date "2024.01.16"]
[Round "2"]
[White "GulamaliRises"]
[Black "FabianoCaruana"]
[Result "0-1"]
[WhiteElo "2612"]
[BlackElo "3029"]
[TimeControl "180+1"]
[EndTime "14:14:47 PST"]
[Termination "FabianoCaruana won by resignation"]

1. e4 {[%clk 0:02:57.3]} 1... c6 {[%clk 0:02:58.2]} 2. d4 {[%clk 0:02:56.9]}
2... d5 {[%clk 0:02:58.5]} 3. e5 {[%clk 0:02:57.6]} 3... Bf5 {[%clk 0:02:58.5]}
4. h4 {[%clk 0:02:58.1]} 4... h5 {[%clk 0:02:56.3]} 5. Bd3 {[%clk 0:02:55.4]}
5... Bxd3 {[%clk 0:02:56.1]} 6. Qxd3 {[%clk 0:02:56.3]} 6... e6 {[%clk 0:02:56]}
7. Nf3 {[%clk 0:02:54.9]} 7... Qa5+ {[%clk 0:02:55.9]} 8. Nbd2 {[%clk
0:02:51.1]} 8... Nd7 {[%clk 0:02:51.2]} 9. O-O {[%clk 0:02:47.7]} 9... Be7
{[%clk 0:02:47.1]} 10. c4 {[%clk 0:02:47.3]} 10... Nh6 {[%clk 0:02:45.8]} 11. a3
{[%clk 0:02:39.7]} 11... Nf5 {[%clk 0:02:45]} 12. g3 {[%clk 0:02:40]} 12... O-O
{[%clk 0:02:43.2]} 13. b3 {[%clk 0:02:35.8]} 13... Rfd8 {[%clk 0:02:38]} 14. Bb2
{[%clk 0:02:32]} 14... dxc4 {[%clk 0:02:35.1]} 15. Nxc4 {[%clk 0:02:28.9]} 15...
Qd5 {[%clk 0:02:32.5]} 16. b4 {[%clk 0:02:22.7]} 16... c5 {[%clk 0:02:29.5]} 17.
bxc5 {[%clk 0:00:32.1]} 17... Nxc5 {[%clk 0:02:19.3]} 18. Qe2 {[%clk 0:00:32.4]}
18... Na4 {[%clk 0:02:18.2]} 0-1

[Event "Late-Titled-Tuesday-Blitz-January-16-2024"]
[Site "Chess.com"]
[Date "2024.01.16"]
[Round "2"]
[White "Practical-Play"]
[Black "Verony64"]
[Result "1-0"]
[WhiteElo "2493"]
[BlackElo "2158"]
[TimeControl "180+1"]
[EndTime "14:14:47 PST"]
[Termination "Practical-Play won by checkmate"]

1. d4 {[%clk 0:03:00.9]} 1... d6 {[%clk 0:02:58.2]} 2. Nf3 {[%clk 0:03:00]} 2...
c6 {[%clk 0:02:58.3]} 3. c4 {[%clk 0:02:54.6]} 3... Nd7 {[%clk 0:02:58.8]} 4.
Nc3 {[%clk 0:02:51.3]} 4... e5 {[%clk 0:02:58.7]} 5. e4 {[%clk 0:02:49.7]} 5...
g6 {[%clk 0:02:57.7]} 6. h4 {[%clk 0:02:47.5]} 6... Bg7 {[%clk 0:02:58.3]} 7.
Be3 {[%clk 0:02:46.1]} 7... Ngf6 {[%clk 0:02:55.5]} 8. Qd2 {[%clk 0:02:36.4]}
8... Ng4 {[%clk 0:02:53.1]} 9. Bg5 {[%clk 0:02:35.3]} 9... f6 {[%clk 0:02:53.6]}
10. Be3 {[%clk 0:02:34]} 10... h5 {[%clk 0:02:50.3]} 11. O-O-O {[%clk
0:02:31.8]} 11... Qe7 {[%clk 0:02:46.2]} 12. Kb1 {[%clk 0:02:18.5]} 12... O-O
{[%clk 0:02:35.9]} 13. d5 {[%clk 0:02:12.6]} 13... c5 {[%clk 0:02:31.5]} 14. Nh2
{[%clk 0:02:07.7]} 14... Nxe3 {[%clk 0:02:29.6]} 15. Qxe3 {[%clk 0:02:08.3]}
15... Kh7 {[%clk 0:02:29.3]} 16. g4 {[%clk 0:02:06.8]} 16... Bh6 {[%clk
0:02:25.1]} 17. Qf3 {[%clk 0:02:03.8]} 17... hxg4 {[%clk 0:02:07.1]} 18. Nxg4
{[%clk 0:02:04.7]} 18... Bf4 {[%clk 0:02:06.5]} 19. Ne2 {[%clk 0:01:56.7]} 19...
f5 {[%clk 0:01:56.8]} 20. exf5 {[%clk 0:01:44.8]} 20... gxf5 {[%clk 0:01:54.2]}
21. Nxf4 {[%clk 0:01:35.5]} 21... fxg4 {[%clk 0:01:52.8]} 22. Bd3+ {[%clk
0:01:34.9]} 22... Kh6 {[%clk 0:01:41.3]} 23. Qxg4 {[%clk 0:01:33.6]} 23... Rf6
{[%clk 0:01:12.9]} 24. Qg5# {[%clk 0:01:32.8]} 1-0

[Event "Late-Titled-Tuesday-Blitz-January-16-2024"]
[Site "Chess.com"]
[Date "2024.01.16"]
[Round "2"]
[White "Akhayan"]
[Black "Sanyura"]
[Result "0-1"]
[WhiteElo "2361"]
[BlackElo "2635"]
[TimeControl "180+1"]
[EndTime "14:15:09 PST"]
[Termination "Sanyura won by resignation"]

1. e4 {[%clk 0:03:00.9]} 1... c5 {[%clk 0:02:41.8]} 2. Nf3 {[%clk 0:03:00.6]}
2... e6 {[%clk 0:02:42.2]} 3. d4 {[%clk 0:03:00.3]} 3... cxd4 {[%clk 0:02:43.1]}
4. Nxd4 {[%clk 0:03:00.8]} 4... Nf6 {[%clk 0:02:43.7]} 5. Nc3 {[%clk 0:03:01.3]}
5... Nc6 {[%clk 0:02:44.3]} 6. Qd3 {[%clk 0:03:00.9]} 6... Bb4 {[%clk
0:02:42.8]} 7. Nxc6 {[%clk 0:02:54.4]} 7... bxc6 {[%clk 0:02:43.7]} 8. Bd2
{[%clk 0:02:54.3]} 8... O-O {[%clk 0:02:37]} 9. O-O-O {[%clk 0:02:54.6]} 9... d5
{[%clk 0:02:36.5]} 10. exd5 {[%clk 0:02:47]} 10... exd5 {[%clk 0:02:34.1]} 11.
Be2 {[%clk 0:02:41]} 11... Qa5 {[%clk 0:02:11.8]} 12. Kb1 {[%clk 0:02:39.5]}
12... Rb8 {[%clk 0:02:11.4]} 13. Ka1 {[%clk 0:02:38.3]} 13... d4 {[%clk
0:02:09.1]} 14. Nb1 {[%clk 0:02:34]} 14... Be6 {[%clk 0:02:08.5]} 15. b3 {[%clk
0:02:28.5]} 15... c5 {[%clk 0:02:03.8]} 16. Bxb4 {[%clk 0:02:11]} 16... Rxb4
{[%clk 0:01:58.4]} 17. Qa6 {[%clk 0:02:08.7]} 17... Qc7 {[%clk 0:01:56.9]} 18.
Bf3 {[%clk 0:01:57.6]} 18... Rb6 {[%clk 0:01:52.9]} 19. Qe2 {[%clk 0:01:55.4]}
19... a5 {[%clk 0:01:53.1]} 20. Rhe1 {[%clk 0:01:53]} 20... a4 {[%clk
0:01:53.3]} 21. Qe5 {[%clk 0:01:53.2]} 21... Qa7 {[%clk 0:01:51.5]} 22. Qxc5
{[%clk 0:01:28]} 22... axb3 {[%clk 0:01:51.5]} 23. cxb3 {[%clk 0:01:27.5]} 23...
Bxb3 {[%clk 0:01:51.5]} 24. Rd2 {[%clk 0:01:26.5]} 24... Be6 {[%clk 0:01:47]}
25. Qxd4 {[%clk 0:01:18.9]} 25... Rfb8 {[%clk 0:01:44.4]} 26. Rc1 {[%clk
0:01:07.7]} 26... h6 {[%clk 0:01:43.3]} 27. g4 {[%clk 0:01:06.5]} 27... Bxa2
{[%clk 0:01:42.8]} 28. Rxa2 {[%clk 0:01:00.5]} 28... Rxb1+ {[%clk 0:01:42.4]}
29. Rxb1 {[%clk 0:00:59.1]} 29... Qxd4+ {[%clk 0:01:43.3]} 0-1

[Event "Late-Titled-Tuesday-Blitz-January-16-2024"]
[Site "Chess.com"]
[Date "2024.01.16"]
[Round "2"]
[White "FairChess_on_YouTube"]
[Black "aghasiyevkamal"]
[Result "1-0"]
[WhiteElo "3097"]
[BlackElo "2626"]
[TimeControl "180+1"]
[EndTime "14:15:10 PST"]
[Termination "FairChess_on_YouTube won on time"]

1. c4 {[%clk 0:03:00.9]} 1... e5 {[%clk 0:02:56.2]} 2. d3 {[%clk 0:03:01]} 2...
Nf6 {[%clk 0:02:55.2]} 3. Nf3 {[%clk 0:03:00.5]} 3... Nc6 {[%clk 0:02:54.7]} 4.
g3 {[%clk 0:03:00.5]} 4... d5 {[%clk 0:02:53.1]} 5. cxd5 {[%clk 0:03:01.1]} 5...
Nxd5 {[%clk 0:02:52.7]} 6. Bg2 {[%clk 0:03:01.7]} 6... Be7 {[%clk 0:02:46]} 7.
O-O {[%clk 0:03:01.7]} 7... O-O {[%clk 0:02:45.8]} 8. Nbd2 {[%clk 0:03:01.1]}
8... Kh8 {[%clk 0:02:30.5]} 9. a3 {[%clk 0:02:59.6]} 9... a5 {[%clk 0:02:25.1]}
10. Nc4 {[%clk 0:02:58.3]} 10... Bf6 {[%clk 0:02:14.2]} 11. Bd2 {[%clk
0:02:55.6]} 11... a4 {[%clk 0:02:10.4]} 12. Rc1 {[%clk 0:02:55]} 12... Bg4
{[%clk 0:01:56.8]} 13. h3 {[%clk 0:02:54.6]} 13... Bxf3 {[%clk 0:01:47.1]} 14.
Bxf3 {[%clk 0:02:54.4]} 14... Nd4 {[%clk 0:01:47.1]} 15. Bg2 {[%clk 0:02:52.3]}
15... c6 {[%clk 0:01:35.3]} 16. Ne3 {[%clk 0:02:51.3]} 16... Nb3 {[%clk
0:01:23.6]} 17. Nxd5 {[%clk 0:02:50.6]} 17... cxd5 {[%clk 0:01:21.2]} 18. Rc2
{[%clk 0:02:50.9]} 18... Qd7 {[%clk 0:01:10.6]} 19. Bb4 {[%clk 0:02:49.6]} 19...
Rfc8 {[%clk 0:00:51]} 20. e3 {[%clk 0:02:49.7]} 20... Qb5 {[%clk 0:00:38]} 21.
h4 {[%clk 0:02:40.9]} 21... Rc6 {[%clk 0:00:32.3]} 22. h5 {[%clk 0:02:34.2]}
22... h6 {[%clk 0:00:32.2]} 23. e4 {[%clk 0:02:31.4]} 23... d4 {[%clk
0:00:26.6]} 24. Bh3 {[%clk 0:02:31.3]} 24... Rxc2 {[%clk 0:00:02.9]} 25. Qxc2
{[%clk 0:02:32.2]} 1-0

[Event "Late-Titled-Tuesday-Blitz-January-16-2024"]
[Site "Chess.com"]
[Date "2024.01.16"]
[Round "2"]
[White "mr_gustavo"]
[Black "ThaBarWa"]
[Result "1-0"]
[WhiteElo "2750"]
[BlackElo "2398"]
[TimeControl "180+1"]
[EndTime "14:15:15 PST"]
[Termination "mr_gustavo won by resignation"]

1. Nf3 {[%clk 0:02:48.1]} 1... d5 {[%clk 0:02:54.2]} 2. g3 {[%clk 0:02:49]} 2...
c5 {[%clk 0:02:42.5]} 3. Bg2 {[%clk 0:02:49.5]} 3... f6 {[%clk 0:02:43.1]} 4.
O-O {[%clk 0:02:50.1]} 4... e5 {[%clk 0:02:43.7]} 5. d3 {[%clk 0:02:49.5]} 5...
Nc6 {[%clk 0:02:43.8]} 6. e4 {[%clk 0:02:46.8]} 6... d4 {[%clk 0:02:43]} 7. Nbd2
{[%clk 0:02:46.4]} 7... Bg4 {[%clk 0:02:41.4]} 8. a4 {[%clk 0:02:46.8]} 8... Qd7
{[%clk 0:02:38.2]} 9. Nc4 {[%clk 0:02:44.7]} 9... Nge7 {[%clk 0:02:29.8]} 10.
Qe1 {[%clk 0:02:44.5]} 10... g5 {[%clk 0:02:21.4]} 11. Nfd2 {[%clk 0:02:44.5]}
11... Ng6 {[%clk 0:02:16.7]} 12. f3 {[%clk 0:02:18.9]} 12... Be6 {[%clk
0:02:15.4]} 13. Nb3 {[%clk 0:02:03]} 13... b6 {[%clk 0:02:13.6]} 14. f4 {[%clk
0:01:56.9]} 14... gxf4 {[%clk 0:01:57.1]} 15. gxf4 {[%clk 0:01:57.8]} 15... Bxc4
{[%clk 0:01:57.5]} 16. dxc4 {[%clk 0:01:57]} 16... exf4 {[%clk 0:01:56.7]} 17.
e5 {[%clk 0:01:55.7]} 17... Ngxe5 {[%clk 0:01:47.9]} 18. Bxf4 {[%clk 0:01:55.1]}
18... Bd6 {[%clk 0:01:41.6]} 19. Bxe5 {[%clk 0:01:54.7]} 19... fxe5 {[%clk
0:01:29.1]} 20. Qe4 {[%clk 0:01:54.1]} 20... Rc8 {[%clk 0:01:27.7]} 21. Rae1
{[%clk 0:01:53.4]} 21... Kd8 {[%clk 0:01:15.6]} 22. Rf6 {[%clk 0:01:45.2]} 22...
Kc7 {[%clk 0:01:15.1]} 23. Ref1 {[%clk 0:01:34]} 23... Rcf8 {[%clk 0:01:14]} 24.
Rf7 {[%clk 0:01:27.1]} 24... Rxf7 {[%clk 0:01:03.9]} 25. Rxf7 {[%clk 0:01:28]}
25... Qxf7 {[%clk 0:01:04.4]} 26. Qxc6+ {[%clk 0:01:27.1]} 26... Kb8 {[%clk
0:01:05]} 27. Qa8+ {[%clk 0:01:26.3]} 27... Kc7 {[%clk 0:01:04.9]} 28. Qb7+
{[%clk 0:01:26.8]} 1-0

[Event "Late-Titled-Tuesday-Blitz-January-16-2024"]
[Site "Chess.com"]
[Date "2024.01.16"]
[Round "2"]
[White "RCone"]
[Black "PNEPaul"]
[Result "1-0"]
[WhiteElo "2429"]
[BlackElo "1912"]
[TimeControl "180+1"]
[EndTime "14:15:20 PST"]
[Termination "RCone won by resignation"]

1. e4 {[%clk 0:03:00.9]} 1... e5 {[%clk 0:02:59.8]} 2. Bc4 {[%clk 0:03:00]} 2...
Nc6 {[%clk 0:02:59.7]} 3. Nc3 {[%clk 0:02:59.9]} 3... Nf6 {[%clk 0:02:59.3]} 4.
d3 {[%clk 0:02:59.6]} 4... Be7 {[%clk 0:02:59.5]} 5. f4 {[%clk 0:02:59.1]} 5...
Bc5 {[%clk 0:02:59]} 6. Nf3 {[%clk 0:02:58.1]} 6... d6 {[%clk 0:02:59.3]} 7. f5
{[%clk 0:02:58.2]} 7... Na5 {[%clk 0:02:57.2]} 8. Qe2 {[%clk 0:02:42.4]} 8...
Nxc4 {[%clk 0:02:56.4]} 9. dxc4 {[%clk 0:02:42.3]} 9... h6 {[%clk 0:02:53.7]}
10. Be3 {[%clk 0:02:41.2]} 10... Bxe3 {[%clk 0:02:51.5]} 11. Qxe3 {[%clk
0:02:41.4]} 11... O-O {[%clk 0:02:49.6]} 12. O-O {[%clk 0:02:39.9]} 12... c6
{[%clk 0:02:48.6]} 13. Rad1 {[%clk 0:02:38.5]} 13... Qe7 {[%clk 0:02:46.5]} 14.
Rd2 {[%clk 0:02:21]} 14... Rd8 {[%clk 0:02:45.2]} 15. Rfd1 {[%clk 0:02:20.7]}
15... a5 {[%clk 0:02:39.1]} 16. b3 {[%clk 0:02:19.1]} 16... Nh5 {[%clk
0:02:25.5]} 17. a4 {[%clk 0:02:16.4]} 17... Nf4 {[%clk 0:02:24.5]} 18. g3 {[%clk
0:02:12.2]} 18... Nh3+ {[%clk 0:02:24.2]} 19. Kg2 {[%clk 0:02:11.7]} 19... Ng5
{[%clk 0:02:24]} 20. Ng1 {[%clk 0:01:59.1]} 20... Nh7 {[%clk 0:01:43.1]} 21. h4
{[%clk 0:01:58.7]} 21... Nf6 {[%clk 0:01:42.4]} 22. Qf3 {[%clk 0:01:52.7]} 22...
Qc7 {[%clk 0:01:32.1]} 23. g4 {[%clk 0:01:44.7]} 23... b6 {[%clk 0:01:29.7]} 24.
g5 {[%clk 0:01:43.5]} 24... hxg5 {[%clk 0:01:29.1]} 25. hxg5 {[%clk 0:01:44.4]}
25... Nh7 {[%clk 0:01:23.8]} 26. Qh5 {[%clk 0:01:36.4]} 26... Qe7 {[%clk
0:01:18.6]} 27. Nf3 {[%clk 0:01:35.8]} 27... d5 {[%clk 0:00:52]} 28. Rh1 {[%clk
0:01:32.7]} 1-0

[Event "Late-Titled-Tuesday-Blitz-January-16-2024"]
[Site "Chess.com"]
[Date "2024.01.16"]
[Round "2"]
[White "MikeSailer"]
[Black "Bastiandash"]
[Result "0-1"]
[WhiteElo "2196"]
[BlackElo "2502"]
[TimeControl "180+1"]
[EndTime "14:15:24 PST"]
[Termination "Bastiandash won by resignation"]

1. d4 {[%clk 0:03:00.4]} 1... g6 {[%clk 0:03:00.9]} 2. Bf4 {[%clk 0:02:48.7]}
2... Bg7 {[%clk 0:03:01.1]} 3. e3 {[%clk 0:02:47.9]} 3... d6 {[%clk 0:03:01.5]}
4. Nf3 {[%clk 0:02:47.3]} 4... Nd7 {[%clk 0:03:00.7]} 5. c4 {[%clk 0:02:47.7]}
5... e5 {[%clk 0:03:00.4]} 6. Bg3 {[%clk 0:02:48]} 6... Qe7 {[%clk 0:03:00]} 7.
Be2 {[%clk 0:02:48.2]} 7... Ngf6 {[%clk 0:02:59.8]} 8. O-O {[%clk 0:02:48.6]}
8... O-O {[%clk 0:03:00.1]} 9. Nc3 {[%clk 0:02:48.6]} 9... c6 {[%clk 0:03:00.8]}
10. h3 {[%clk 0:02:42.7]} 10... Re8 {[%clk 0:02:51.8]} 11. Re1 {[%clk 0:02:42]}
11... Nh5 {[%clk 0:02:43.3]} 12. Bh2 {[%clk 0:02:41.8]} 12... f5 {[%clk
0:02:43.9]} 13. b4 {[%clk 0:02:30.5]} 13... Nhf6 {[%clk 0:02:35]} 14. b5 {[%clk
0:02:28.5]} 14... e4 {[%clk 0:02:30.4]} 15. Nd2 {[%clk 0:02:27.4]} 15... g5
{[%clk 0:02:26.2]} 16. bxc6 {[%clk 0:02:15.5]} 16... bxc6 {[%clk 0:02:27.1]} 17.
d5 {[%clk 0:02:15.9]} 17... c5 {[%clk 0:02:22.2]} 18. Nb5 {[%clk 0:02:12.7]}
18... Ne5 {[%clk 0:02:20.8]} 19. Rb1 {[%clk 0:02:00.8]} 19... a6 {[%clk
0:02:09]} 20. Qa4 {[%clk 0:02:00.1]} 20... Bd7 {[%clk 0:02:08]} 21. Qb3 {[%clk
0:01:04]} 21... axb5 {[%clk 0:02:05.9]} 22. cxb5 {[%clk 0:01:04.3]} 22... Reb8
{[%clk 0:01:59.9]} 23. a4 {[%clk 0:01:04.4]} 23... Ng6 {[%clk 0:01:48.7]} 24.
Nc4 {[%clk 0:00:49.8]} 24... f4 {[%clk 0:01:48.8]} 25. a5 {[%clk 0:00:39.2]}
25... Rxb5 {[%clk 0:01:48]} 0-1

[Event "Late-Titled-Tuesday-Blitz-January-16-2024"]
[Site "Chess.com"]
[Date "2024.01.16"]
[Round "2"]
[White "Angry_Twin"]
[Black "StellarChess"]
[Result "1-0"]
[WhiteElo "2962"]
[BlackElo "2581"]
[TimeControl "180+1"]
[EndTime "14:15:25 PST"]
[Termination "Angry_Twin won by resignation"]

1. e4 {[%clk 0:03:00.9]} 1... Nc6 {[%clk 0:02:57.3]} 2. d4 {[%clk 0:03:00.3]}
2... e5 {[%clk 0:02:56.7]} 3. dxe5 {[%clk 0:02:59.6]} 3... Nxe5 {[%clk
0:02:56.1]} 4. Nf3 {[%clk 0:03:00.2]} 4... Qf6 {[%clk 0:02:52.6]} 5. Nc3 {[%clk
0:02:59.2]} 5... Nxf3+ {[%clk 0:02:52.7]} 6. Qxf3 {[%clk 0:02:58.9]} 6... Qxf3
{[%clk 0:02:52.6]} 7. gxf3 {[%clk 0:02:59.8]} 7... c6 {[%clk 0:02:52]} 8. Bf4
{[%clk 0:02:58.8]} 8... Ne7 {[%clk 0:02:50.6]} 9. O-O-O {[%clk 0:02:53.7]} 9...
Ng6 {[%clk 0:02:50.5]} 10. Be3 {[%clk 0:02:51.4]} 10... Bb4 {[%clk 0:02:43.9]}
11. f4 {[%clk 0:02:49]} 11... Ne7 {[%clk 0:02:38.6]} 12. Rg1 {[%clk 0:02:45.8]}
12... O-O {[%clk 0:02:30.3]} 13. f5 {[%clk 0:02:42.3]} 13... b5 {[%clk
0:01:53.4]} 14. h4 {[%clk 0:02:38.6]} 14... f6 {[%clk 0:01:50.3]} 15. h5 {[%clk
0:02:26.4]} 15... Kf7 {[%clk 0:01:44.4]} 16. a3 {[%clk 0:02:17.1]} 16... Bxc3
{[%clk 0:01:43.3]} 17. bxc3 {[%clk 0:02:18]} 17... d5 {[%clk 0:01:43.9]} 18. f3
{[%clk 0:02:18.1]} 18... Bb7 {[%clk 0:01:39.2]} 19. Bc5 {[%clk 0:02:17.3]} 19...
Rg8 {[%clk 0:01:37.1]} 20. Bd3 {[%clk 0:02:14.8]} 20... a6 {[%clk 0:01:36.6]}
21. Rde1 {[%clk 0:02:14.6]} 21... Rae8 {[%clk 0:01:36.5]} 22. a4 {[%clk
0:02:06.3]} 22... g5 {[%clk 0:01:29.3]} 23. fxg6+ {[%clk 0:01:52.9]} 23... hxg6
{[%clk 0:01:30.2]} 24. Bxe7 {[%clk 0:01:52.6]} 24... Rxe7 {[%clk 0:01:25.3]} 25.
hxg6+ {[%clk 0:01:52.7]} 25... Kg7 {[%clk 0:01:19.8]} 26. exd5 {[%clk
0:01:52.1]} 26... Rge8 {[%clk 0:01:18.5]} 27. Rxe7+ {[%clk 0:01:43.2]} 27...
Rxe7 {[%clk 0:01:19.4]} 28. d6 {[%clk 0:01:43.9]} 28... Rd7 {[%clk 0:01:11.1]}
29. Rh1 {[%clk 0:01:44.1]} 29... Kg8 {[%clk 0:01:01.4]} 30. Rh7 {[%clk
0:01:43.4]} 30... Bc8 {[%clk 0:00:43]} 31. Bf5 {[%clk 0:01:43.1]} 1-0